[Event "Titled Tuesday Blitz June 22 2021"]
[White "Vovk, Orest"]
[Black "Csonka, Balazs"]
[WhiteFideId "14113490"]
[BlackFideId "742910"]
[WhiteElo "2203"]
[BlackElo "2404"]
[Result "1-0"]
[Round "11"]
[TimeControl "180+1"]
[Date "2021.06.22"]
[WhiteClock "0:00:24"]
[BlackClock "0:00:05"]

1. g4 {[%clk 0:03:00]}  d5 {[%clk 0:02:59]} 2. h3 {[%clk 0:03:00]}  e5 {[%clk 0:02:52]} 3. Bg2 {[%clk 0:03:00]}  c6 {[%clk 0:02:52]} 4. d4 {[%clk 0:02:59]}  e4 {[%clk 0:02:47]} 5. c4 {[%clk 0:02:59]}  dxc4 {[%clk 0:02:40]} 6. Bxe4 {[%clk 0:02:58]}  Nf6 {[%clk 0:02:39]} 7. Bg2 {[%clk 0:02:56]}  Bb4+ {[%clk 0:02:05]} 8. Nc3 {[%clk 0:02:56]}  h5 {[%clk 0:01:52]} 9. g5 {[%clk 0:02:55]}  Nd5 {[%clk 0:01:51]} 10. Bd2 {[%clk 0:02:55]}  b5 {[%clk 0:01:45]} 11. e4 {[%clk 0:02:55]}  Nxc3 {[%clk 0:01:23]} 12. bxc3 {[%clk 0:02:54]}  Be7 {[%clk 0:01:23]} 13. f4 {[%clk 0:02:53]}  Nd7 {[%clk 0:01:11]} 14. Nf3 {[%clk 0:02:52]}  Nb6 {[%clk 0:01:11]} 15. O-O {[%clk 0:02:49]}  Na4 {[%clk 0:01:10]} 16. Qc2 {[%clk 0:02:44]}  Qc7 {[%clk 0:01:06]} 17. f5 {[%clk 0:02:35]}  f6 {[%clk 0:00:55]} 18. e5 {[%clk 0:02:25]}  Bb7 {[%clk 0:00:44]} 19. exf6 {[%clk 0:02:01]}  gxf6 {[%clk 0:00:45]} 20. gxf6 {[%clk 0:02:01]}  Bxf6 {[%clk 0:00:45]} 21. Rae1+ {[%clk 0:02:00]}  Kd8 {[%clk 0:00:28]} 22. Re6 {[%clk 0:02:00]}  Rf8 {[%clk 0:00:23]} 23. Ne5 {[%clk 0:01:44]}  Bxe5 {[%clk 0:00:20]} 24. Rxe5 {[%clk 0:01:30]}  Kc8 {[%clk 0:00:13]} 25. f6 {[%clk 0:01:24]}  Qd6 {[%clk 0:00:08]} 26. Qf5+ {[%clk 0:00:56]}  Kc7 {[%clk 0:00:08]} 27. Bf4 {[%clk 0:00:41]}  Qxf6 {[%clk 0:00:05]} 28. Re6+ {[%clk 0:00:33]}  Kb6 {[%clk 0:00:05]} 29. Rxf6 {[%clk 0:00:33]}  Rxf6 {[%clk 0:00:06]} 30. Qxf6 {[%clk 0:00:33]}  Nxc3 {[%clk 0:00:06]} 31. Bd6 {[%clk 0:00:26]}  Rg8 {[%clk 0:00:04]} 32. Bc5+ {[%clk 0:00:25]}  Ka6 {[%clk 0:00:05]} 33. Kh2 {[%clk 0:00:24]} 1-0


[Site "https://www.chess.com"]

[Event "Titled Tuesday Blitz June 22 2021"]
[White "Willow, Jonah B"]
[Black "Perez Rodriguez, Luis Manuel"]
[WhiteFideId "438804"]
[BlackFideId "3503364"]
[WhiteElo "2261"]
[BlackElo "2429"]
[Result "1-0"]
[Round "11"]
[TimeControl "180+1"]
[Date "2021.06.22"]
[WhiteClock "0:00:20"]
[BlackClock "0:00:11"]

1. e4 {[%clk 0:03:00]}  e5 {[%clk 0:03:00]} 2. Nf3 {[%clk 0:03:01]}  Nc6 {[%clk 0:03:00]} 3. Nc3 {[%clk 0:03:02]}  Nf6 {[%clk 0:03:00]} 4. Bb5 {[%clk 0:03:02]}  Nd4 {[%clk 0:02:59]} 5. Bc4 {[%clk 0:03:02]}  Bc5 {[%clk 0:02:59]} 6. d3 {[%clk 0:03:02]}  d6 {[%clk 0:02:52]} 7. Na4 {[%clk 0:03:02]}  b5 {[%clk 0:02:47]} 8. Nxd4 {[%clk 0:03:02]}  bxc4 {[%clk 0:02:43]} 9. Nf5 {[%clk 0:03:02]}  Bxf5 {[%clk 0:02:38]} 10. exf5 {[%clk 0:03:03]}  cxd3 {[%clk 0:02:37]} 11. Nxc5 {[%clk 0:03:04]}  dxc5 {[%clk 0:02:34]} 12. cxd3 {[%clk 0:03:05]}  O-O {[%clk 0:02:30]} 13. O-O {[%clk 0:03:05]}  Qd5 {[%clk 0:02:24]} 14. Be3 {[%clk 0:03:03]}  c4 {[%clk 0:02:06]} 15. dxc4 {[%clk 0:02:49]}  Qxc4 {[%clk 0:02:07]} 16. b3 {[%clk 0:02:41]}  Qe4 {[%clk 0:02:06]} 17. Rc1 {[%clk 0:02:40]}  Qxf5 {[%clk 0:02:01]} 18. Rxc7 {[%clk 0:02:37]}  a5 {[%clk 0:01:58]} 19. Qc1 {[%clk 0:02:16]}  a4 {[%clk 0:01:50]} 20. b4 {[%clk 0:02:15]}  a3 {[%clk 0:01:49]} 21. b5 {[%clk 0:02:13]}  Nd5 {[%clk 0:01:35]} 22. Rc5 {[%clk 0:02:11]}  Qe4 {[%clk 0:01:31]} 23. Re1 {[%clk 0:02:05]}  Nxe3 {[%clk 0:00:41]} 24. Rxe3 {[%clk 0:02:04]}  Qd4 {[%clk 0:00:40]} 25. Rcxe5 {[%clk 0:02:01]}  Qb2 {[%clk 0:00:35]} 26. Qc4 {[%clk 0:01:02]}  h6 {[%clk 0:00:26]} 27. Re2 {[%clk 0:00:59]}  Rac8 {[%clk 0:00:21]} 28. Rxb2 {[%clk 0:00:33]}  axb2 {[%clk 0:00:22]} 29. Qb4 {[%clk 0:00:26]}  Rc1+ {[%clk 0:00:18]} 30. Re1 {[%clk 0:00:26]}  Re8 {[%clk 0:00:11]} 31. Rf1 {[%clk 0:00:20]} 1-0


[Site "https://www.chess.com"]

[Event "Titled Tuesday Blitz June 22 2021"]
[White "Wong, Yinn Long"]
[Black "Gorovets, Andrey"]
[WhiteFideId "5707684"]
[BlackFideId "13504037"]
[WhiteElo "2016"]
[BlackElo "2462"]
[Result "1-0"]
[Round "11"]
[TimeControl "180+1"]
[Date "2021.06.22"]
[WhiteClock "0:00:14"]
[BlackClock "0:00:08"]

1. b4 {[%clk 0:03:00]}  e5 {[%clk 0:02:55]} 2. Bb2 {[%clk 0:03:01]}  Bxb4 {[%clk 0:02:56]} 3. Bxe5 {[%clk 0:03:01]}  Nf6 {[%clk 0:02:56]} 4. c3 {[%clk 0:02:58]}  Ba5 {[%clk 0:02:53]} 5. Nf3 {[%clk 0:02:54]}  O-O {[%clk 0:02:53]} 6. e3 {[%clk 0:02:53]}  Re8 {[%clk 0:02:53]} 7. Be2 {[%clk 0:02:40]}  c5 {[%clk 0:02:47]} 8. O-O {[%clk 0:02:35]}  d5 {[%clk 0:02:47]} 9. Bxf6 {[%clk 0:02:29]}  Qxf6 {[%clk 0:02:46]} 10. d4 {[%clk 0:02:27]}  c4 {[%clk 0:02:34]} 11. Ne5 {[%clk 0:02:19]}  Nc6 {[%clk 0:02:30]} 12. Nxc6 {[%clk 0:02:13]}  bxc6 {[%clk 0:02:31]} 13. Qa4 {[%clk 0:02:09]}  Bc7 {[%clk 0:02:29]} 14. Nd2 {[%clk 0:02:09]}  Qd6 {[%clk 0:02:26]} 15. g3 {[%clk 0:02:04]}  Bf5 {[%clk 0:02:23]} 16. Bd1 {[%clk 0:01:52]}  Rab8 {[%clk 0:02:22]} 17. Bc2 {[%clk 0:01:51]}  Bh3 {[%clk 0:02:20]} 18. Rfb1 {[%clk 0:01:51]}  h5 {[%clk 0:02:16]} 19. e4 {[%clk 0:01:30]}  h4 {[%clk 0:01:47]} 20. e5 {[%clk 0:01:27]}  Qh6 {[%clk 0:01:46]} 21. Nf3 {[%clk 0:01:24]}  hxg3 {[%clk 0:01:45]} 22. hxg3 {[%clk 0:01:25]}  Bb6 {[%clk 0:01:44]} 23. Qa3 {[%clk 0:01:20]}  f6 {[%clk 0:01:33]} 24. Qc1 {[%clk 0:01:16]}  Qxc1+ {[%clk 0:01:30]} 25. Rxc1 {[%clk 0:01:17]}  Bg4 {[%clk 0:01:31]} 26. Nh2 {[%clk 0:01:16]}  Bh3 {[%clk 0:01:16]} 27. Ba4 {[%clk 0:01:08]}  Re6 {[%clk 0:01:13]} 28. Nf3 {[%clk 0:00:56]}  Bg4 {[%clk 0:01:05]} 29. Nh2 {[%clk 0:00:57]}  Bh5 {[%clk 0:01:05]} 30. Kg2 {[%clk 0:00:45]}  fxe5 {[%clk 0:01:02]} 31. dxe5 {[%clk 0:00:46]}  Rxe5 {[%clk 0:01:01]} 32. Bxc6 {[%clk 0:00:45]}  Rc8 {[%clk 0:00:54]} 33. Bd7 {[%clk 0:00:41]}  Rd8 {[%clk 0:00:48]} 34. Bg4 {[%clk 0:00:41]}  Bg6 {[%clk 0:00:45]} 35. Bf3 {[%clk 0:00:37]}  d4 {[%clk 0:00:40]} 36. Ng4 {[%clk 0:00:30]}  Ra5 {[%clk 0:00:34]} 37. cxd4 {[%clk 0:00:23]}  Bxd4 {[%clk 0:00:33]} 38. Rd1 {[%clk 0:00:24]}  c3 {[%clk 0:00:23]} 39. Rac1 {[%clk 0:00:21]}  c2 {[%clk 0:00:22]} 40. Rd2 {[%clk 0:00:20]}  Rxa2 {[%clk 0:00:21]} 41. Ne5 {[%clk 0:00:20]}  Bf5 {[%clk 0:00:14]} 42. Nc6 {[%clk 0:00:19]}  Rd6 {[%clk 0:00:11]} 43. Nxd4 {[%clk 0:00:19]}  Bg6 {[%clk 0:00:12]} 44. Nb3 {[%clk 0:00:16]}  Rxd2 {[%clk 0:00:11]} 45. Nxd2 {[%clk 0:00:17]}  Rb2 {[%clk 0:00:11]} 46. Be4 {[%clk 0:00:14]}  Rb1 {[%clk 0:00:08]} 47. Rxc2 {[%clk 0:00:14]} 1-0


[Site "https://www.chess.com"]

[Event "Titled Tuesday Blitz June 22 2021"]
[White "Zubov, Alexander"]
[Black "Rychagov, Andrey"]
[WhiteFideId "14109409"]
[BlackFideId "4119932"]
[WhiteElo "2740"]
[BlackElo "2527"]
[Result "1-0"]
[Round "11"]
[TimeControl "180+1"]
[Date "2021.06.22"]
[WhiteClock "0:00:07"]
[BlackClock "0:00:07"]

1. e4 {[%clk 0:03:00]}  e6 {[%clk 0:02:59]} 2. d4 {[%clk 0:03:00]}  d5 {[%clk 0:02:59]} 3. Nd2 {[%clk 0:02:59]}  Nf6 {[%clk 0:02:55]} 4. e5 {[%clk 0:02:58]}  Ne4 {[%clk 0:02:56]} 5. Nxe4 {[%clk 0:02:55]}  dxe4 {[%clk 0:02:56]} 6. Be3 {[%clk 0:02:54]}  c5 {[%clk 0:02:55]} 7. dxc5 {[%clk 0:02:54]}  Nd7 {[%clk 0:02:55]} 8. Qg4 {[%clk 0:02:45]}  Qa5+ {[%clk 0:02:13]} 9. c3 {[%clk 0:02:44]}  Nxc5 {[%clk 0:02:13]} 10. Bxc5 {[%clk 0:02:33]}  Qxc5 {[%clk 0:02:06]} 11. Qxe4 {[%clk 0:02:33]}  Bd7 {[%clk 0:02:06]} 12. Nf3 {[%clk 0:02:13]}  Bc6 {[%clk 0:02:05]} 13. Qe3 {[%clk 0:02:08]}  O-O-O {[%clk 0:01:54]} 14. Nd4 {[%clk 0:02:05]}  Bd5 {[%clk 0:01:46]} 15. a3 {[%clk 0:01:46]}  Qb6 {[%clk 0:01:41]} 16. b4 {[%clk 0:01:40]}  Kb8 {[%clk 0:01:35]} 17. Rd1 {[%clk 0:01:33]}  Rc8 {[%clk 0:01:33]} 18. h4 {[%clk 0:01:25]}  f6 {[%clk 0:01:20]} 19. Rh3 {[%clk 0:01:19]}  fxe5 {[%clk 0:01:15]} 20. Qxe5+ {[%clk 0:01:18]}  Bd6 {[%clk 0:01:12]} 21. Qxg7 {[%clk 0:01:17]}  Rhg8 {[%clk 0:01:10]} 22. Qxh7 {[%clk 0:01:14]}  Bxg2 {[%clk 0:01:10]} 23. Re3 {[%clk 0:00:59]}  Bxf1 {[%clk 0:01:00]} 24. Kxf1 {[%clk 0:00:59]}  e5 {[%clk 0:00:54]} 25. Ne2 {[%clk 0:00:47]}  Rh8 {[%clk 0:00:34]} 26. Qe4 {[%clk 0:00:47]}  Bc7 {[%clk 0:00:29]} 27. c4 {[%clk 0:00:31]}  Qf6 {[%clk 0:00:28]} 28. Rf3 {[%clk 0:00:30]}  Rxh4 {[%clk 0:00:23]} 29. Rxf6 {[%clk 0:00:28]}  Rxe4 {[%clk 0:00:23]} 30. c5 {[%clk 0:00:29]}  Rh8 {[%clk 0:00:23]} 31. Ng3 {[%clk 0:00:28]}  Rc4 {[%clk 0:00:23]} 32. Kg2 {[%clk 0:00:25]}  e4 {[%clk 0:00:22]} 33. Rf7 {[%clk 0:00:18]}  e3 {[%clk 0:00:22]} 34. Rdd7 {[%clk 0:00:15]}  Rc8 {[%clk 0:00:15]} 35. fxe3 {[%clk 0:00:13]}  Rg4 {[%clk 0:00:15]} 36. Rg7 {[%clk 0:00:13]}  Rg8 {[%clk 0:00:13]} 37. Rxc7 {[%clk 0:00:08]}  R4xg7 {[%clk 0:00:13]} 38. Rxg7 {[%clk 0:00:09]}  Rxg7 {[%clk 0:00:13]} 39. Kf3 {[%clk 0:00:10]}  a5 {[%clk 0:00:13]} 40. b5 {[%clk 0:00:09]}  Rg5 {[%clk 0:00:12]} 41. Ne4 {[%clk 0:00:09]}  Rh5 {[%clk 0:00:13]} 42. Ke2 {[%clk 0:00:07]}  Kc7 {[%clk 0:00:12]} 43. Kd3 {[%clk 0:00:07]}  Rd5+ {[%clk 0:00:10]} 44. Kc4 {[%clk 0:00:07]}  Rd1 {[%clk 0:00:10]} 45. Nc3 {[%clk 0:00:07]}  Re1 {[%clk 0:00:08]} 46. e4 {[%clk 0:00:07]}  a4 {[%clk 0:00:08]} 47. Kb4 {[%clk 0:00:07]}  Re3 {[%clk 0:00:08]} 48. Nd5+ {[%clk 0:00:07]}  Kb8 {[%clk 0:00:07]} 49. Nxe3 {[%clk 0:00:07]} 1-0


[Site "https://www.chess.com"]

[Event "Titled Tuesday Blitz June 22 2021"]
[White "elcandado"]
[Black "Tsschessulover"]
[WhiteElo "2614"]
[BlackElo "2511"]
[Result "1/2-1/2"]
[Round "11"]
[TimeControl "180+1"]
[Date "2021.06.22"]
[WhiteClock "0:00:06"]
[BlackClock "0:00:06"]

1. d4 {[%clk 0:03:00]}  Nf6 {[%clk 0:02:59]} 2. Bf4 {[%clk 0:03:00]}  d5 {[%clk 0:02:57]} 3. e3 {[%clk 0:02:59]}  e6 {[%clk 0:02:57]} 4. Nd2 {[%clk 0:02:59]}  Bd6 {[%clk 0:02:57]} 5. Bg3 {[%clk 0:02:58]}  Nc6 {[%clk 0:02:56]} 6. Ngf3 {[%clk 0:02:54]}  Qe7 {[%clk 0:02:56]} 7. c4 {[%clk 0:02:53]}  Bxg3 {[%clk 0:02:50]} 8. hxg3 {[%clk 0:02:52]}  e5 {[%clk 0:02:48]} 9. cxd5 {[%clk 0:02:51]}  Nxd5 {[%clk 0:02:47]} 10. e4 {[%clk 0:02:51]}  exd4 {[%clk 0:02:41]} 11. Bb5 {[%clk 0:02:39]}  Nf6 {[%clk 0:02:33]} 12. O-O {[%clk 0:02:37]}  O-O {[%clk 0:02:20]} 13. Bxc6 {[%clk 0:02:32]}  bxc6 {[%clk 0:02:20]} 14. Nxd4 {[%clk 0:02:32]}  c5 {[%clk 0:02:14]} 15. Nf5 {[%clk 0:02:18]}  Qe5 {[%clk 0:01:45]} 16. Qc2 {[%clk 0:02:14]}  Nxe4 {[%clk 0:01:32]} 17. Qxe4 {[%clk 0:02:13]}  Qxe4 {[%clk 0:01:32]} 18. Nxe4 {[%clk 0:02:13]}  Bxf5 {[%clk 0:01:32]} 19. Nxc5 {[%clk 0:02:14]}  Rab8 {[%clk 0:01:30]} 20. b3 {[%clk 0:02:13]}  Rb6 {[%clk 0:01:23]} 21. f3 {[%clk 0:02:10]}  Rc6 {[%clk 0:01:22]} 22. Rac1 {[%clk 0:02:08]}  Rd8 {[%clk 0:01:17]} 23. g4 {[%clk 0:02:06]}  Bc8 {[%clk 0:01:06]} 24. Rfe1 {[%clk 0:01:47]}  f5 {[%clk 0:00:42]} 25. gxf5 {[%clk 0:01:43]}  Bxf5 {[%clk 0:00:43]} 26. b4 {[%clk 0:01:18]}  Rd2 {[%clk 0:00:35]} 27. a4 {[%clk 0:01:00]}  Rg6 {[%clk 0:00:29]} 28. g4 {[%clk 0:00:56]}  h5 {[%clk 0:00:29]} 29. Ne4 {[%clk 0:00:49]}  Rd4 {[%clk 0:00:19]} 30. Ng3 {[%clk 0:00:47]}  Bxg4 {[%clk 0:00:17]} 31. Kf2 {[%clk 0:00:42]}  Bxf3 {[%clk 0:00:16]} 32. Nf5 {[%clk 0:00:38]}  Rd7 {[%clk 0:00:08]} 33. Ne7+ {[%clk 0:00:28]}  Rxe7 {[%clk 0:00:07]} 34. Rxe7 {[%clk 0:00:29]}  Bd5 {[%clk 0:00:04]} 35. Rcxc7 {[%clk 0:00:27]}  h4 {[%clk 0:00:05]} 36. Re5 {[%clk 0:00:25]}  Bg2 {[%clk 0:00:03]} 37. Rc8+ {[%clk 0:00:22]}  Kf7 {[%clk 0:00:03]} 38. Rh5 {[%clk 0:00:19]}  h3 {[%clk 0:00:03]} 39. Rc7+ {[%clk 0:00:18]}  Ke6 {[%clk 0:00:03]} 40. Rxa7 {[%clk 0:00:19]}  Rf6+ {[%clk 0:00:03]} 41. Kg1 {[%clk 0:00:17]}  Rf1+ {[%clk 0:00:03]} 42. Kh2 {[%clk 0:00:17]}  Rb1 {[%clk 0:00:04]} 43. b5 {[%clk 0:00:16]}  Rb2 {[%clk 0:00:04]} 44. Kg3 {[%clk 0:00:15]}  Rb3+ {[%clk 0:00:04]} 45. Kf4 {[%clk 0:00:14]}  Rb4+ {[%clk 0:00:04]} 46. Ke3 {[%clk 0:00:15]}  Rb3+ {[%clk 0:00:04]} 47. Kd4 {[%clk 0:00:15]}  g6 {[%clk 0:00:05]} 48. Rh6 {[%clk 0:00:13]}  Kf5 {[%clk 0:00:05]} 49. Kc4 {[%clk 0:00:11]}  Rb1 {[%clk 0:00:06]} 50. a5 {[%clk 0:00:11]}  g5 {[%clk 0:00:06]} 51. b6 {[%clk 0:00:10]}  g4 {[%clk 0:00:07]} 52. Rf7+ {[%clk 0:00:08]}  Ke5 {[%clk 0:00:06]} 53. Rg7 {[%clk 0:00:07]}  Kf4 {[%clk 0:00:06]} 54. Rf6+ {[%clk 0:00:06]}  Kg3 {[%clk 0:00:06]} 55. Rh6 {[%clk 0:00:06]}  Bf3 {[%clk 0:00:06]} 56. a6 {[%clk 0:00:05]}  h2 {[%clk 0:00:06]} 57. a7 {[%clk 0:00:04]}  h1=Q {[%clk 0:00:06]} 58. Rxh1 {[%clk 0:00:04]}  Bxh1 {[%clk 0:00:07]} 59. b7 {[%clk 0:00:04]}  Bxb7 {[%clk 0:00:03]} 60. Rxb7 {[%clk 0:00:04]}  Ra1 {[%clk 0:00:04]} 61. Kb5 {[%clk 0:00:04]}  Kf2 {[%clk 0:00:04]} 62. Kb6 {[%clk 0:00:04]}  g3 {[%clk 0:00:04]} 63. Rf7+ {[%clk 0:00:04]}  Ke2 {[%clk 0:00:05]} 64. Rg7 {[%clk 0:00:04]}  Kf2 {[%clk 0:00:05]} 65. Rf7+ {[%clk 0:00:04]}  Ke2 {[%clk 0:00:05]} 66. Rg7 {[%clk 0:00:04]}  Kf2 {[%clk 0:00:05]} 67. Rg5 {[%clk 0:00:04]}  g2 {[%clk 0:00:06]} 68. Rxg2+ {[%clk 0:00:04]}  Kxg2 {[%clk 0:00:06]} 69. Kb7 {[%clk 0:00:05]}  Rb1+ {[%clk 0:00:06]} 70. Kc7 {[%clk 0:00:05]}  Rc1+ {[%clk 0:00:06]} 71. Kb7 {[%clk 0:00:05]}  Rb1+ {[%clk 0:00:07]} 72. Kc7 {[%clk 0:00:06]}  Rc1+ {[%clk 0:00:07]} 73. Kb7 {[%clk 0:00:06]}  Rb1+ {[%clk 0:00:06]} 1/2-1/2